Cogmind - Beta 13 X2 @@@ ROGUE MODE // 2024.01.25 @ 11:08:57 Player: Boris Result: Destroyed self with Grenade Launcher Performance ------------- Evolutions (0) 0 Regions Visited (2) 400 Robots Destroyed (14) 70 Value Destroyed (332) 332 Prototype IDs (0) 0 Alien Tech Used (0) 0 Bonus (0) 0 TOTAL SCORE: 802 Bonus ------- None Cogmind --------- Core Integrity 0/250 Matter 154/300 Energy 250/250 System Corruption 0% Temperature Cool (0) Movement Rolling (115) Ox1 Location -10/Mines Parts ------- > --- POWER (1) -------- Ion Engine > --- PROPULSION (2) --- Compact Wheel > --- UTILITY (2) ------ Medium Storage Unit Seismic Detector > --- WEAPON (2) ------- Light Assault Rifle Grenade Launcher > --- INVENTORY (10) --- Aluminum Leg Heat Sink Heat Sink Structural Scanner Light Assault Rifle Grenade Launcher Grenade Launcher Mining Laser Peak State ------------ > --- POWER ------------ Light Ion Engine > --- PROPULSION ------- Light Treads Light Treads > --- UTILITY ---------- Heat Sink Medium Storage Unit > --- WEAPON ----------- Small Laser Assault Rifle > --- INVENTORY -------- Ion Engine Compact Wheel Structural Scanner Seismic Detector Light Assault Rifle Light Assault Rifle Grenade Launcher Grenade Launcher Grenade Launcher Mining Laser [Rating: 8] Favorites ----------- Power Light Ion Engine Engine Light Ion Engine Propulsion Light Treads Treads Light Treads Wheel Compact Wheel Utility Heat Sink Device Heat Sink Storage Medium Storage Unit Weapon Assault Rifle Energy Gun Small Laser Ballistic Gun Assault Rifle Launcher Grenade Launcher Build | -11 -10 -10 ------- Run | Yrd Mat Min Slots Evolved . | . . . Power . | . . . Propulsion . | . . . Utility . | . . . Weapon . | . . . Parts Attached 23 | 5 10 8 Power 3 | 1 1 1 Engine 3 | 1 1 1 Core . | . . . Reactor . | . . . Propulsion 3 | 2 . 1 Treads 2 | 2 . . Leg . | . . . Wheel 1 | . . 1 Hover . | . . . Flight . | . . . Utility 6 | . 3 3 Device 5 | . 2 3 Storage 1 | . 1 . Processor . | . . . Hackware . | . . . Protection . | . . . Artifact . | . . . Weapon 11 | 2 6 3 Energy Gun 2 | . 2 . Energy Cannon . | . . . Ballistic Gun 6 | 2 2 2 Ballistic Cannon . | . . . Launcher 3 | . 2 1 Special Weapon . | . . . Impact Weapon . | . . . Slashing Weapon . | . . . Piercing Weapon . | . . . Special Melee Weapon . | . . . Unidentified Prototypes . | . . . Parts Lost 5 | . . 5 Power 1 | . . 1 Propulsion 2 | . . 2 Utility . | . . . Weapon 2 | . . 2 Highest Loss Streak 4 | . . 4 To Critical Strikes . | . . . Average Slot Usage (%) 95 | . 95 93 Engine 13 | . 14 13 Treads 26 | . 28 16 Wheel 1 | . . 7 Device 16 | . 17 14 Storage 7 | . 6 14 Energy Gun 10 | . 11 6 Ballistic Gun 15 | . 15 14 Launcher 1 | . . 8 Naked Turns . | . . . Heaviest Build 20 | 5 20 20 Greatest Support 40 | 40 40 40 Greatest Overweight (x) 1 | . . 1 Average Overweight (x) . | . . . Largest Inventory Capacity 10 | 5 10 10 Average Capacity 7 | 5 7 10 Most Carried 10 | 2 10 10 Average Carried 5 | 1 6 8 Final Capacity 10 | 5 10 10 Final Carried 10 | 2 10 8 Class Distribution -------------------- 100% | Mutant Dominant Class ---------------- Mutant | -10/Materials Mutant | -10/Mines Resources | -11 -10 -10 ----------- Run | Yrd Mat Min Matter Collected 601 | 189 309 103 Remotely . | . . . Salvage Created 486 | . 374 112 Parts 27 | . 22 5 Haulers Intercepted 1 | . 1 . Recyclers Shooed . | . . . Parts Field Recycled . | . . . Retrieved Matter . | . . . Parts Self-Destructed . | . . . Prevented . | . . . Kills | -11 -10 -10 ------- Run | Yrd Mat Min Combat Hostiles Destroyed 21 | . 8 13 Guns 7 | . 5 2 AOE 14 | . 3 11 Classes Destroyed 7 | . 5 2 Worker 2 | . 2 . Tunneler 1 | . . 1 Hauler 1 | . 1 . Watcher 1 | . 1 . Swarmer 1 | . 1 . Grunt 8 | . 7 1 Assembled 12 | . . 12 Best Kill Streak 10 | . 4 10 Combat Bots Only 10 | . 3 10 Max Kills in Single Turn 2 | . 2 2 Gunslinging . | . . . Exploded 2 | . 2 2 Melee . | . . . Uniques/NPCs Destroyed . | . . . Combat | -11 -10 -10 -------- Run | Yrd Mat Min Hostile Shots Fired 53 | . 28 25 Missed 7 | . 4 3 Damage Taken 944 | . 251 693 Core 256 | . 20 236 Absorbed by Shields . | . . . Core Remaining (%) 100 | 100 . . Volleys Fired 70 | . 47 23 Largest 2 | . 2 2 Hottest 60 | . 60 60 Shots Fired 126 | . 92 34 Gun 108 | . 88 20 Cannon . | . . . Launcher 18 | . 4 14 Special . | . . . Kinetic 65 | . 53 12 Thermal 43 | . 35 8 Explosive 18 | . 4 14 Electromagnetic . | . . . Robot Hit Streak 21 | . 21 5 Robot Miss Streak 3 | . 3 2 Penetration Max . | . . . Secondary Targets . | . . . Shots Hit Robots 81 | . 64 17 Core Hits 47 | 1 20 26 Critical Kills . | . . . Critical Parts Destroyed 1 | . 1 . Critical Strikes 1 | . 1 . Destroy 1 | . 1 . Melee Attacks . | . . . Impact . | . . . Slashing . | . . . Piercing . | . . . Sneak Attacks . | . . . Combat Hostiles . | . . . Follow-up Attacks . | . . . Damage Inflicted 1781 | 1 987 793 Guns 872 | . 731 141 Cannons . | . . . Explosions 904 | . 252 652 Melee . | . . . Ramming 5 | 1 4 . Kinetic 571 | . 474 97 Thermal 301 | . 257 44 Explosive 904 | . 252 652 Electromagnetic . | . . . Impact . | . . . Slashing . | . . . Piercing . | . . . Highest Corruption . | . . . Average Corruption . | . . . Corruption Purged . | . . . Corruption Blocked . | . . . Overload Shots . | . . . Overflow Damage 12 | . 6 6 Projectiles . | . . . Explosions 12 | . 6 6 Melee . | . . . Knockbacks . | . . . Impact . | . . . Kinetic . | . . . Secondary . | . . . Self-Inflicted Damage 100 | . . 100 Shots 4 | . . 4 Rammed 3 | 1 2 . Targets Rammed 3 | 1 2 . Kicked . | . . . Crushed . | . . . Highest Temperature 81 | . 6 81 Average Temperature 29 | . 5 41 Received Heat Transfer 204 | . 114 90 Siege Activations . | . . . Robots Corrupted . | . . . Combat Hostiles . | . . . Parts Fried . | . . . Impact Corruptions . | . . . Robots Melted . | . . . Combat Hostiles . | . . . Parts Melted 1 | . 1 . Heat Transferred 700 | . 600 100 Parts Sabotaged . | . . . Parts Stolen . | . . . Parts Stripped . | . . . Power Chain Reactions . | . . . Missiles Intercepted . | . . . Alert | -11 -10 -10 ------- Run | Yrd Mat Min Peak Influence 264 | . 264 160 Initial 102 | . . 102 Average 75 | . 78 118 Maximum Alert Level 1 | . 1 . Low Security (%) 96 | 100 95 100 Level 1 3 | . 4 . Level 2 . | . . . Level 3 . | . . . Level 4 . | . . . Level 5 . | . . . High Security . | . . . Max Security . | . . . Squads Dispatched 3 | . 3 . Investigation 3 | . 3 . Extermination . | . . . Reinforcement . | . . . Assault . | . . . Garrison . | . . . Intercept . | . . . Searches Triggered . | . . . Construction Impeded . | . . . Haulers Reinforced . | . . . Active Scanning Responses . | . . . Cargo Convoy Interrupts . | . . . Stealth | -11 -10 -10 --------- Run | Yrd Mat Min Distress Signals 1 | . 1 . Communications Jammed . | . . . Distress Signals . | . . . Times Spotted 33 | . 18 15 Peak Tracking Total 6 | . 4 6 Tactical Retreats 2 | . 2 . Traps | -11 -10 -10 ------- Run | Yrd Mat Min Traps Triggered . | . . . Indirectly . | . . . Trap Hack Attempts . | . . . Triggered . | . . . Disarmed . | . . . Reprogrammed . | . . . Reused . | . . . Traps Extracted . | . . . Installed . | . . . Triggered . | . . . Machines | -11 -10 -10 ---------- Run | Yrd Mat Min Machines Disabled 1 | . . 1 Max in Single Turn 1 | . . 1 Machines Repaired . | . . . Machines Dismantled . | . . . Machines Sabotaged . | . . . Overloaded Fab Kills . | . . . Hacking | -11 -10 -10 --------- Run | Yrd Mat Min Machines Accessed 5 | . 5 . Terminals 3 | . 3 . Fabricators . | . . . Repair Stations . | . . . Recycling Units 2 | . 2 . Scanalyzers . | . . . Garrison Access . | . . . Total Hacks 16 | . 16 . Successful 4 | . 4 . Failed 12 | . 12 . Catastrophic 3 | . 3 . Database Lockouts . | . . . Manual 9 | . 9 . Terminals 9 | . 9 . Fabricators . | . . . Repair Stations . | . . . Recycling Units 7 | . 7 . Scanalyzers . | . . . Garrison Access . | . . . Terminal Hacks 1 | . 1 . Recycling Unit Index 1 | . 1 . Fabricator Hacks . | . . . Repair Station Hacks . | . . . Recycling Unit Hacks 1 | . 1 . Retrieve Components 1 | . 1 . Scanalyzer . | . . . Garrison Access Hacks . | . . . Unauthorized Hacks 2 | . 2 . Terminals . | . . . Fabricators . | . . . Repair Stations . | . . . Recycling Units 2 | . 2 . Tunnel 2 | . 2 . Scanalyzers . | . . . Garrison Access . | . . . Data Cores Recovered . | . . . Used . | . . . Hacking Detections 5 | . 5 . Full Trace Events 1 | . 1 . Feedback Events . | . . . Feedback Blocked . | . . . Robot Schematics Acquired . | . . . Robots Built . | . . . Authchips . | . . . Time . | . . . Total Robot Build Rating . | . . . Part Schematics Acquired . | . . . Parts Built . | . . . Authchips . | . . . Time . | . . . Total Part Build Rating . | . . . Parts Repaired . | . . . Time . | . . . Parts Recycled . | . . . Recycled Matter . | . . . Retrieved Matter . | . . . Retrieved Components 8 | . 8 . Parts Scanalyzed . | . . . Part Schematics Acquired . | . . . Parts Damaged . | . . . Bothacking | -11 -10 -10 ------------ Run | Yrd Mat Min Used RIF Installer . | . . . Robots Hacked . | . . . Non-combat . | . . . Combat . | . . . Robot Hacks Applied . | . . . Relay Couplers Released . | . . . Fabnet Peak Effective % . | . . . Robots Rewired . | . . . Allies Hacked . | . . . Hacks Repelled . | . . . Allies | -11 -10 -10 -------- Run | Yrd Mat Min Total Allies . | . . . Largest Group . | . . . Highest-Rated Group . | . . . Highest-Rated Ally . | . . . Total Orders . | . . . Ally Attacks . | . . . Total Damage . | . . . Kills . | . . . Allies Corrupted . | . . . Allies Melted . | . . . Intel | -11 -10 -10 ------- Run | Yrd Mat Min Robot Analysis Total . | . . . Derelict Logs Recovered . | . . . Drone Launches . | . . . Drone Recoveries . | . . . Exploration | -11 -10 -10 ------------- Run | Yrd Mat Min Turns Passed 966 | 112 710 144 Spaces Moved 426 | 65 307 54 Core 2 | 2 . . Treads 388 | 63 307 18 Legs . | . . . Wheels 36 | . . 36 Hover . | . . . Flight . | . . . Fastest Speed 50 | 50 160 115 Average Speed 155 | 156 160 130 Slowest Speed 160 | 160 160 160 Overloaded Moves . | . . . Propulsion Burnouts . | . . . Robots Hopped . | . . . Cave-ins Triggered . | . . . Exploration Rate (%) 22 | 5 39 23 Regions Visited 2 Branch Regions 1 Pre-discovered Areas 2 | . 2 . Known Exits Taken . | . . . Unknown Exits Taken 2 | 1 1 . Scrap Searched . | . . . Spaces Dug 17 | . . 17 Terrain Destroyed 103 | . 21 82 Melee . | . . . Projectile . | . . . AOE 103 | . 21 82 Terrain Rammed . | . . . Walls Destroyed . | . . . Machines Disabled . | . . . Actions | -11 -10 -10 --------- Run | Yrd Mat Min Total 598 | 72 432 94 Wait 61 | . 54 7 Move 424 | 64 306 54 Hop . | . . . Pick Up 13 | 2 9 2 Fast Attach 9 | 5 4 . Attach 4 | . . 4 Detach 1 | . 1 . Swap 10 | . 6 4 Drop 3 | . 3 . Fire 70 | . 47 23 Melee . | . . . Ram . | . . . Kick . | . . . Crush 3 | 1 2 . Escape Stasis . | . . . Rewire . | . . . Trap . | . . . Miscellaneous . | . . . Route ------- -11/Scrapyard -10/Materials (discovered 2 exits: [*Mat] / [*Min]) -10/Mines (discovered 1 exit: [*Mat]) History --------- Turn | Location | Event 6 | -11/Scrapyard | Discovered new exit (range 15) 113 | -11/Scrapyard | Entered Materials 315 | -10/Materials | Build established: Mutant 358 | -10/Materials | Discovered new exit (range 6) 687 | -10/Materials | Discovered new exit (range 15) 823 | -10/Materials | Entered Mines 823 | -10/Mines | Discovered new exit (range 7) 872 | -10/Mines | Assembled infested the area 884 | -10/Mines | Core integrity fell below 50% 916 | -10/Mines | Lost 4 parts (1p1n2w) 923 | -10/Mines | Core integrity fell below 20% 967 | -10/Mines | Destroyed self with Grenade Launcher Last Messages --------------- 00915_ Acquired Aluminum Leg. 00920_ Destroyed Asb. Hover Unit. 00920_ as-78487 destroyed. 00920_ as-86730 destroyed. 00922_ The unstable cave ceiling collapses. 00922_ as-56373 destroyed. 00924_ The unstable cave ceiling collapses. 00924_ Lgt. Treads destroyed. 00925_ as-18753 destroyed. 00925_ as-08115 destroyed. 00928_ as-30804 destroyed. 00930_ as-71108 destroyed. 00935_ The unstable cave ceiling collapses. 00940_ as-12326 destroyed. 00949_ The unstable cave ceiling collapses. 00957_ as-11183 destroyed. 00963_ Acquired 13 matter. 00965_ The unstable cave ceiling collapses. 00965_ Core Extractor disabled. 00967_ as-72330 destroyed. Map ----- +----------------------------------------------------+ | | | | | | | | | | | | | ?????????????????????????????????????????????????? | | ??????????????????????###????????????????????????? | | ?????????????????????## ###?????????????????##### | | ?????????????????????# #####??????######### # | | ?????????????????????# < ######## # | | ?????????????????????# ## # | | ?????????????????????## ### ## # | | ??????????????????????## #?# # # # | | ??????????????????????# ### ## | | ??????????????????????# ## #? | | ??????????????????????# ##?## ## | | ??????????????????????# ##?# # #### | | ?????????????????????## # #?#### # # ### | | ?????????????????????# #????######### ## | | ?????????????????????### ###????????????# ## | | ???????????????# ###### # #????????????# ### | | ???????????????# #????????????# #?## | | ???????????????# * ###????????????# #??? | | ???????????????#### ! ##?????????????? ??? | | ??????????????????# @% ???????????????? ??? | | ??????????????????# $ $ ????????????? ??? | | ??????????????????# ####???????????? ??? | | ??????????????????# # #?????????????? ??? | | ??????????????????## ## % ????????????? ??? | | ???????????????????# ?# ???????????? ??? | | ???????????????????#$?? ??????????? ??? | | ???????????????????# ?? "" ???????????????? | | ??????????????????? ?? "" ??????????????? | | ??????????????????????# """ ?????????????? | | ??????????????????????## ? ????????????? | | ???????????????????????# ??? #????????????? | | ???????????????????????# ??? ??????????????? | | ???????????????????????# ##????#????????????????? | | ???????????????????????? ???????????????????????? | | ???????????????????????? ???????????????????????? | | ?????????????????????????????????????????????????? | | ?????????????????????????????????????????????????? | | ?????????????????????????????????????????????????? | | ?????????????????????????????????????????????????? | | ?????????????????????????????????????????????????? | | ?????????????????????????????????????????????????? | | ?????????????????????????????????????????????????? | | ?????????????????????????????????????????????????? | | ?????????????????????????????????????????????????? | +----------------------------------------------------+ Best States ------------- Heat Dissipation 35 Energy Generation 10 Energy Capacity 250 Matter Stores 300 Matter Capacity 300 Sight Range 16 Terrain Scan Density 10 Evasion (%) 40 Recoil Reduction 2 Item Schematics ----------------- None Robot Schematics ------------------ None Fabricated ------------ Nothing Alien Tech Used ----------------- None Achievements -------------- None Challenges ------------ None Game ------ Seed BombDeliveryWheel Manual? 0 Play Time 00:09:27 Cumulative 463.5 hours Start 2024.01.25 @ 11:01:38 End 2024.01.25 @ 11:08:57 Sessions 1 Manual Loads 0 Difficulty Rogue Special Mode None Game No. 165 Rogue 150 Adventurer 15 Explorer 0 Win Type - Total 30 Types 8/3/8/2/2/0/4/2/1 Lore% 91 Gallery% 93 Achievement% 83 Wizard Run 0 Options --------- ASCII 0 Keyboard 0 Movement Numpad Keybinds 0 Fullscreen 1 Font 18/SmallcapsGlow Map View 76x50 Zoom Use 0% Tactical HUD 1 Map Filters NONE Filters NONE Steam 1 RUN: 547730c1-930f-4e12-b869-09ae1ac638c1